fUST/lending_fUST_20260114
["ID","MTS","AMOUNT","RATE_DAILY","PERIOD"]
[401897170,1768398641812,-500.0,0.00013273,2]
[401897172,1768398641821,-167.63409657,0.00013273,2]
[401897174,1768398641831,-500.49098579,0.00013273,2]
[401897176,1768398641840,-500.18250774,0.00013273,2]
[401897178,1768398641849,-500.0,0.00013273,2]
[401897180,1768398641858,-500.0,0.00013273,2]
[401897182,1768398641867,-500.0,0.00013273,2]
[401897184,1768398641877,-500.0,0.00013273,2]
[401897186,1768398641887,-501.85584568,0.00013273,2]
[401897188,1768398641895,-500.0,0.00013273,2]
[401897190,1768398641904,-500.0,0.00013273,2]
[401897192,1768398641914,-500.0,0.00013273,2]
[401897194,1768398641923,-500.0,0.00013273,2]
[401897196,1768398641932,-500.0,0.00013273,2]
[401897198,1768398641941,-500.0,0.00013273,2]
[401897200,1768398641955,-500.0,0.00013273,2]
[401897202,1768398641964,-500.0,0.00013273,2]
[401897204,1768398641973,-500.0,0.00013273,2]
[401897206,1768398641982,-500.0,0.00013273,2]
[401897208,1768398641991,-500.28056306,0.00013273,2]
[401897210,1768398642004,-500.0,0.00013273,2]
[401897212,1768398642024,-195.77760179,0.00013273,2]
[401897214,1768398642040,-500.0,0.00013273,2]
[401897216,1768398642049,-500.0,0.00013273,2]
[401897218,1768398642058,-500.0,0.00013273,2]
[401897220,1768398642067,-500.25674362,0.00013273,2]
[401897222,1768398642075,-500.0,0.00013273,2]
[401897224,1768398642085,-500.0,0.00013273,2]
[401897225,1768398642094,-500.20354178,0.00013273,2]
[401897228,1768398642103,-261.59054001,0.00013273,2]
[401897229,1768398642112,-500.0,0.00013273,2]
[401897231,1768398642121,-500.0,0.00013273,2]
[401897233,1768398642131,-316.29207451,0.00013273,2]
[401897235,1768398642140,-500.0,0.00013273,2]
[401897237,1768398642149,-161.32472846,0.00013273,2]
[401897239,1768398642158,-500.0,0.00013273,2]
[401897242,1768398642168,-500.0,0.00013273,2]
[401897243,1768398642177,-500.0,0.00013273,2]
[401897245,1768398642187,-500.0,0.00013273,2]
[401897247,1768398642196,-500.0,0.00013273,2]
[401897250,1768398642205,-500.0,0.00013273,2]
[401897252,1768398642214,-500.0,0.00013273,2]
[401897254,1768398642224,-500.0,0.00013273,2]
[401897256,1768398642233,-185.624668,0.00013273,2]
[401897258,1768398642241,-500.0,0.00013273,2]
[401897260,1768398642250,-520.1094365,0.00013273,2]
[401897262,1768398642259,-500.0,0.00013273,2]
[401897264,1768398642269,-500.0,0.00013273,2]
[401897266,1768398642278,-250.0,0.00013591,2]
[401897268,1768398642289,-500.0,0.00013591,2]
[401897270,1768398642298,-461.67526834,0.00013591,2]
[401897271,1768398642307,-500.0,0.00013591,2]
[401897273,1768398642317,-500.0,0.00013591,2]
[401897275,1768398642327,-160.0,0.00013591,2]
[401897277,1768398642336,-500.0,0.00013591,2]
[401897279,1768398642345,-160.0,0.00013591,2]
[401897281,1768398642356,-30000.0,0.00013591,2]
[401897284,1768398642369,-500.0,0.00013591,2]
[401897285,1768398642378,-164.08273023,0.00013591,2]
[401897287,1768398642389,-500.0,0.00013591,2]
[401897289,1768398642398,-500.0,0.00013591,2]
[401897291,1768398642407,-168.3888056,0.00013591,2]
[401897293,1768398642417,-500.0,0.00013591,2]
[401897295,1768398642426,-174.61919141,0.00013591,2]
[401897297,1768398642435,-500.0,0.00013591,2]
[401897299,1768398642444,-181.08010149,0.00013591,2]
[401897301,1768398642454,-187.78006525,0.00013591,2]
[401897303,1768398642463,-500.0,0.00013591,2]
[401897305,1768398642472,-194.72792766,0.00013591,2]
[401897307,1768398642481,-500.0,0.00013591,2]
[401897309,1768398642492,-201.93286099,0.00013591,2]
[401897311,1768398642501,-500.0,0.00013591,2]
[401897313,1768398642510,-209.40437684,0.00013591,2]
[401897315,1768398642519,-500.0,0.00013591,2]
[401897317,1768398642528,-217.15233878,0.00013591,2]
[401897319,1768398642537,-500.0,0.00013591,2]
[401897321,1768398642546,-225.18697532,0.00013591,2]
[401897323,1768398642555,-500.0,0.00013591,2]
[401897325,1768398642564,-233.51889341,0.00013591,2]
[401897327,1768398642573,-500.0,0.00013591,2]
[401897329,1768398642582,-242.15909246,0.00013591,2]
[401897331,1768398642591,-500.0,0.00013591,2]
[401897333,1768398642600,-251.11897888,0.00013591,2]
[401897335,1768398642609,-260.4103811,0.00013591,2]
[401897338,1768398642618,-270.0455652,0.00013591,2]
[401897339,1768398642627,-280.03725112,0.00013591,2]
[401897340,1768398642635,-290.39862941,0.00013591,2]
[401897341,1768398642644,-301.1433787,0.00013591,2]
[401897342,1768398642653,-2230.315306,0.00013591,2]
[401897343,1768398642661,-168.3888056,0.00013591,2]
[401897344,1768398642670,-10000.0,0.00013598,2]
[401897345,1768398642679,-300.0,0.00013673,2]
[401897346,1768398642694,-600.0,0.00013679,2]
[401897347,1768398642703,-1152.0,0.00013679,2]
[401897348,1768398642712,-500.0,0.00013698,2]
[401897349,1768398642721,-500.0,0.00013698,2]
[401897350,1768398642730,-500.0,0.00013698,2]
[401897351,1768398642738,-640.1566523,0.00013698,2]
[401897352,1768398642747,-500.0,0.00013698,2]
[401897353,1768398642756,-500.0,0.00013698,2]
[401897354,1768398642764,-500.0,0.00013698,2]
[401897355,1768398642773,-500.0,0.00013698,2]
[401897356,1768398642782,-500.0,0.00013698,2]
[401897357,1768398642792,-500.0,0.00013698,2]
[401897358,1768398642800,-636.78829679,0.00013698,2]
[401897359,1768398642809,-500.0,0.00013698,2]
[401897360,1768398642818,-500.0,0.00013698,2]
[401897362,1768398642828,-253.34510422,0.00013698,2]
[401897364,1768398642836,-800.23,0.00013698,2]
[401897366,1768398642845,-800.23,0.00013698,2]
[401897368,1768398642855,-800.23,0.00013698,2]
[401897370,1768398642864,-800.23,0.00013698,2]
[401897372,1768398642873,-800.23,0.00013698,2]
[401897374,1768398642883,-800.23,0.00013698,2]
[401897376,1768398642892,-800.23,0.00013698,2]
[401897378,1768398642901,-800.23,0.00013698,2]
[401897380,1768398642910,-800.23,0.00013698,2]
[401897382,1768398642919,-800.23,0.00013698,2]
[401897384,1768398642928,-800.23,0.00013698,2]
[401897386,1768398642942,-800.23,0.00013698,2]
[401897388,1768398642951,-800.23,0.00013698,2]
[401897390,1768398642960,-800.23,0.00013698,2]
[401897392,1768398642969,-800.23,0.00013698,2]
[401897394,1768398642979,-800.23,0.00013698,2]
[401897396,1768398642988,-800.23,0.00013698,2]
[401897398,1768398642998,-800.23,0.00013698,2]
[401897400,1768398643007,-800.23,0.00013698,2]
[401897402,1768398643018,-800.23,0.00013698,2]
[401897404,1768398643028,-800.23,0.00013698,2]
[401897406,1768398643037,-800.23,0.00013698,2]
[401897408,1768398643046,-800.23,0.00013698,2]
[401897410,1768398643056,-800.43872931,0.00013698,2]
[401897412,1768398643065,-500.0,0.00013698,2]
[401897414,1768398643074,-500.0,0.00013698,2]
[401897416,1768398643082,-633.96263391,0.00013698,2]
[401897418,1768398643091,-500.0,0.00013698,2]
[401897420,1768398643101,-500.0,0.00013698,2]
[401897422,1768398643110,-500.0,0.00013698,2]
[401897424,1768398643119,-500.0,0.00013698,2]
[401897426,1768398643128,-500.0,0.00013698,2]
[401897428,1768398643137,-500.0,0.00013698,2]
[401897430,1768398643146,-582.4382982,0.00013698,2]
[401897432,1768398643155,-570.08,0.00013698,2]
[401897434,1768398643164,-570.08,0.00013698,2]
[401897436,1768398643174,-570.08,0.00013698,2]
[401897438,1768398643183,-570.08,0.00013698,2]
[401897440,1768398643192,-570.08,0.00013698,2]
[401897442,1768398643201,-570.08,0.00013698,2]
[401897444,1768398643210,-570.08,0.00013698,2]
[401897446,1768398643220,-570.08,0.00013698,2]
[401897448,1768398643228,-570.08,0.00013698,2]
[401897450,1768398643237,-570.08,0.00013698,2]
[401897452,1768398643246,-570.08,0.00013698,2]
[401897454,1768398643255,-570.08,0.00013698,2]
[401897456,1768398643264,-570.08,0.00013698,2]
[401897458,1768398643273,-570.08,0.00013698,2]
[401897460,1768398643282,-570.08,0.00013698,2]
[401897462,1768398643292,-570.08,0.00013698,2]
[401897464,1768398643301,-570.08,0.00013698,2]
[401897466,1768398643311,-570.08,0.00013698,2]
[401897468,1768398643319,-570.08,0.00013698,2]
[401897470,1768398643328,-570.08,0.00013698,2]
[401897472,1768398643337,-570.08,0.00013698,2]
[401897474,1768398643346,-570.08,0.00013698,2]
[401897476,1768398643355,-570.08,0.00013698,2]
[401897478,1768398643364,-570.14825894,0.00013698,2]
[401897480,1768398643373,-500.0,0.00013698,2]
[401897482,1768398643383,-500.0,0.00013698,2]
[401897484,1768398643393,-500.0,0.00013698,2]
[401897486,1768398643401,-500.0,0.00013698,2]
[401897488,1768398643410,-550.39437847,0.00013698,2]
[401897490,1768398643419,-500.0,0.00013698,2]
[401897492,1768398643428,-500.0,0.00013698,2]
[401897494,1768398643437,-500.0,0.00013698,2]
[401897496,1768398643446,-500.0,0.00013698,2]
[401897498,1768398643455,-500.0,0.00013698,2]
[401897500,1768398643464,-1000.0,0.00013698,2]
[401897502,1768398643472,-1000.0,0.00013698,2]
[401897504,1768398643481,-1000.0,0.00013698,2]
[401897506,1768398643491,-1000.0,0.00013698,2]
[401897508,1768398643500,-1000.0,0.00013698,2]
[401897510,1768398643509,-1000.0,0.00013698,2]
[401897512,1768398643518,-1000.0,0.00013698,2]
[401897514,1768398643528,-1017.75755303,0.00013698,2]
[401897516,1768398643537,-500.0,0.00013698,2]
[401897518,1768398643547,-500.0,0.00013698,2]
[401897520,1768398643557,-500.0,0.00013698,2]
[401897522,1768398643566,-453.8287473,0.00013698,2]
[401897524,1768398643575,-525.94,0.00013698,2]
[401897526,1768398643584,-525.94,0.00013698,2]
[401897528,1768398643594,-525.94,0.00013698,2]
[401897530,1768398643603,-525.94,0.00013698,2]
[401897532,1768398643612,-525.94,0.00013698,2]
[401897534,1768398643621,-525.94,0.00013698,2]
[401897536,1768398643630,-525.94,0.00013698,2]
[401897538,1768398643639,-525.94,0.00013698,2]
[401897540,1768398643648,-525.94,0.00013698,2]
[401897542,1768398643657,-525.94,0.00013698,2]
[401897544,1768398643666,-525.94,0.00013698,2]
[401897546,1768398643675,-525.94,0.00013698,2]
[401897549,1768398643685,-525.94,0.00013698,2]
[401897551,1768398643693,-525.94,0.00013698,2]
[401897553,1768398643702,-525.94,0.00013698,2]
[401897555,1768398643712,-525.94,0.00013698,2]
[401897557,1768398643722,-525.94,0.00013698,2]
[401897559,1768398643731,-525.94,0.00013698,2]
[401897561,1768398643740,-525.94,0.00013698,2]
[401897563,1768398643748,-525.94,0.00013698,2]
[401897565,1768398643757,-525.94,0.00013698,2]
[401897567,1768398643766,-525.94,0.00013698,2]
[401897569,1768398643775,-525.94,0.00013698,2]
[401897571,1768398643784,-526.04678427,0.00013698,2]
[401897573,1768398643794,-1526.91,0.00013698,2]
[401897575,1768398643804,-1526.91,0.00013698,2]
[401897577,1768398643813,-1526.91,0.00013698,2]
[401897579,1768398643822,-1526.91,0.00013698,2]
[401897580,1768398643832,-1526.91,0.00013698,2]
[401897583,1768398643841,-1526.91,0.00013698,2]
[401897584,1768398643850,-1526.91,0.00013698,2]
[401897587,1768398643859,-1526.91,0.00013698,2]
[401897589,1768398643868,-1526.91,0.00013698,2]
[401897590,1768398643877,-1526.91,0.00013698,2]
[401897593,1768398643887,-1526.91,0.00013698,2]
[401897595,1768398643896,-1526.91,0.00013698,2]
[401897597,1768398643906,-1526.91,0.00013698,2]
[401897598,1768398643916,-1526.91,0.00013698,2]
[401897600,1768398643926,-1526.91,0.00013698,2]
[401897603,1768398643935,-1526.91,0.00013698,2]
[401897604,1768398643950,-1526.91,0.00013698,2]
[401897606,1768398643959,-1526.91,0.00013698,2]
[401897608,1768398643968,-1526.91,0.00013698,2]
[401897611,1768398643978,-1526.91,0.00013698,2]
[401897612,1768398643987,-1526.91,0.00013698,2]
[401897614,1768398643996,-1526.91,0.00013698,2]
[401897616,1768398644005,-1526.91,0.00013698,2]
[401897618,1768398644016,-1526.97,0.00013698,2]
[401897620,1768398644025,-518.87817295,0.00013698,2]
[401897622,1768398644034,-500.0,0.00013698,2]
[401897624,1768398644043,-500.0,0.00013698,2]
[401897626,1768398644052,-500.0,0.00013698,2]
[401897628,1768398644061,-500.0,0.00013698,2]
[401897629,1768398644070,-500.0,0.00013698,2]
[401897631,1768398644079,-500.0,0.00013698,2]
[401897633,1768398644088,-500.0,0.00013698,2]
[401897635,1768398644097,-500.0,0.00013698,2]
[401897637,1768398644106,-500.0,0.00013698,2]
[401897639,1768398644115,-500.0,0.00013698,2]
[401897641,1768398644125,-260.74557216,0.00013698,2]
[401897643,1768398644134,-504.29229129,0.00013698,2]
[401897645,1768398644143,-500.0,0.00013698,2]
[401897647,1768398644151,-500.0,0.00013698,2]
[401897649,1768398644160,-500.0,0.00013698,2]
[401897651,1768398644170,-559.52204836,0.00013698,2]
[401897653,1768398644179,-500.0,0.00013698,2]
[401897655,1768398644188,-500.0,0.00013698,2]
[401897657,1768398644198,-500.0,0.00013698,2]
[401897659,1768398644207,-500.0,0.00013698,2]
[401897661,1768398644216,-500.0,0.00013698,2]
[401897662,1768398644226,-500.0,0.00013698,2]
[401897664,1768398644235,-500.0,0.00013698,2]
[401897666,1768398644244,-500.0,0.00013698,2]
[401897668,1768398644253,-500.0,0.00013698,2]
[401897670,1768398644263,-500.0,0.00013698,2]
[401897672,1768398644272,-500.0,0.00013698,2]
[401897674,1768398644282,-500.0,0.00013698,2]
[401897676,1768398644293,-500.0,0.00013698,2]
[401897679,1768398644303,-500.0,0.00013698,2]
[401897680,1768398644312,-509.06636441,0.00013698,2]
[401897683,1768398644322,-500.0,0.00013698,2]
[401897684,1768398644332,-500.0,0.00013698,2]
[401897687,1768398644341,-500.0,0.00013698,2]
[401897689,1768398644350,-500.0,0.00013698,2]
[401897691,1768398644360,-500.0,0.00013698,2]
[401897693,1768398644370,-500.0,0.00013698,2]
[401897695,1768398644379,-500.0,0.00013698,2]
[401897697,1768398644388,-500.0,0.00013698,2]
[401897699,1768398644398,-500.0,0.00013698,2]
[401897701,1768398644407,-500.0,0.00013698,2]
[401897702,1768398644416,-500.0,0.00013698,2]
[401897704,1768398644425,-516.10527878,0.00013698,2]
[401897706,1768398644435,-1321.2655534,0.00013699,2]
[401897708,1768398644444,-500.0,0.00013699,2]
[401897710,1768398644454,-500.0,0.00013699,2]
[401897712,1768398644462,-500.0,0.00013699,2]
[401897714,1768398644471,-500.0,0.00013699,2]
[401897716,1768398644481,-500.0,0.00013699,2]
[401897718,1768398644490,-500.91728774,0.00013699,2]
[401897720,1768398644499,-501.74975073,0.00013699,2]
[401897722,1768398644508,-500.0,0.00013699,2]
[401897724,1768398644517,-500.0,0.00013699,2]
[401897726,1768398644527,-500.64767098,0.00013699,2]
[401897728,1768398644536,-500.0,0.00013699,2]
[401897730,1768398644547,-500.0,0.00013699,2]
[401897732,1768398644556,-500.0,0.00013699,2]
[401897734,1768398644565,-413.79090585,0.00013699,2]
[401897736,1768398644575,-500.0,0.00013699,2]
[401897738,1768398644584,-500.0,0.00013699,2]
[401897740,1768398644593,-500.0,0.00013699,2]
[401897742,1768398644602,-506.34451005,0.00013699,2]
[401897743,1768398644611,-500.0,0.00013699,2]
[401897745,1768398644621,-252.90578758,0.00013699,2]
[401897747,1768398644630,-500.0,0.00013699,2]
[401897749,1768398644639,-301.86126485,0.00013699,2]
[401897751,1768398644648,-370.92368598,0.00013699,2]
[401897753,1768398644657,-500.0,0.00013699,2]
[401897755,1768398644666,-500.0,0.00013699,2]
[401897757,1768398644676,-500.0,0.00013699,2]
[401897759,1768398644685,-500.0,0.00013699,2]
[401897761,1768398644694,-500.28466628,0.00013699,2]
[401897763,1768398644703,-500.0,0.00013699,2]
[401897765,1768398644712,-500.0,0.00013699,2]
[401897767,1768398644722,-500.0,0.00013699,2]
[401897769,1768398644731,-500.0,0.00013699,2]
[401897771,1768398644739,-500.0,0.00013699,2]
[401897773,1768398644748,-500.0,0.00013699,2]
[401897775,1768398644757,-500.0,0.00013699,2]
[401897777,1768398644766,-500.0,0.00013699,2]
[401897779,1768398644775,-500.0,0.00013699,2]
[401897781,1768398644784,-500.0,0.00013699,2]
[401897783,1768398644793,-500.0,0.00013699,2]
[401897785,1768398644803,-526.2087109,0.00013699,2]
[401897786,1768398644812,-500.0,0.00013699,2]
[401897788,1768398644821,-500.0,0.00013699,2]
[401897790,1768398644831,-500.0,0.00013699,2]
[401897792,1768398644840,-500.0,0.00013699,2]
[401897794,1768398644849,-504.50322617,0.00013699,2]
[401897796,1768398644858,-500.0,0.00013699,2]
[401897798,1768398644867,-500.0,0.00013699,2]
[401897800,1768398644876,-500.0,0.00013699,2]
[401897802,1768398644885,-500.0,0.00013699,2]
[401897804,1768398644894,-500.0,0.00013699,2]
[401897806,1768398644903,-443.99780341,0.00013699,2]
[401897808,1768398644912,-500.0,0.00013699,2]
[401897810,1768398644921,-500.0,0.00013699,2]
[401897812,1768398644931,-2000.0,0.00013699,7]
[401897814,1768398644944,-500.0,0.00013699,2]
[401897816,1768398644953,-500.0,0.00013699,2]
[401897818,1768398644962,-500.0,0.00013699,2]
[401897820,1768398644971,-500.0,0.00013699,2]
[401897822,1768398644980,-500.0,0.00013699,2]
[401897824,1768398644990,-500.0,0.00013699,2]
[401897826,1768398644999,-500.0,0.00013699,2]
[401897828,1768398645008,-500.0,0.00013699,2]
[401897830,1768398645019,-500.0,0.00013699,2]
[401897832,1768398645028,-500.0,0.00013699,2]
[401897834,1768398645037,-501.05002058,0.00013699,2]
[401897836,1768398645047,-500.0,0.00013699,2]
[401897838,1768398645059,-500.0,0.00013699,2]
[401897840,1768398645068,-500.0,0.00013699,2]
[401897842,1768398645077,-500.0,0.00013699,2]
[401897844,1768398645086,-500.0,0.00013699,2]
[401897846,1768398645095,-500.0,0.00013699,2]
[401897848,1768398645104,-501.1212268,0.00013699,2]
[401897850,1768398645113,-500.0,0.00013699,2]
[401897852,1768398645123,-433.32498894,0.00013699,2]
[401897854,1768398645132,-10000.0,0.00013735,2]
[401897856,1768398645141,-10000.0,0.00013735,2]
[401897858,1768398645150,-4343.48,0.00013735,2]
[401897860,1768398645159,-1549.64,0.00013763,2]
[401897862,1768398645169,-1000.0,0.00013821,2]
[401897864,1768398645178,-1002.88869488,0.00013821,2]
[401897866,1768398645187,-771.86141758,0.00013821,2]
[401897868,1768398645196,-1000.0,0.00013821,2]
[401897869,1768398645205,-1000.0,0.00013821,2]
[401897871,1768398645214,-440.24648614,0.00013821,2]
[401897892,1768398645404,-1000.0,0.00013821,2]
[401897895,1768398645415,-1015.29551893,0.00013821,2]
[401897897,1768398645424,-1000.0,0.00013821,2]
[401897899,1768398645434,-1000.0,0.00013821,2]
[401897901,1768398645443,-1000.0,0.00013821,2]
[401897903,1768398645453,-169.06993919,0.00013821,2]
[401897905,1768398645462,-1000.0,0.00013821,2]
[401897907,1768398645472,-1000.0,0.00013821,2]
[401897909,1768398645481,-1000.0,0.00013821,2]
[401897911,1768398645490,-1000.0,0.00013821,2]
[401897913,1768398645500,-1000.0,0.00013821,2]
[401897915,1768398645510,-1000.0,0.00013821,2]
[401897917,1768398645519,-1000.0,0.00013821,2]
[401897918,1768398645529,-503.63165228,0.00013821,2]
[401897921,1768398645539,-386.78841051,0.00013821,2]
[401897922,1768398645548,-1000.0,0.00013821,2]
[401897925,1768398645558,-1000.0,0.00013821,2]
[401897927,1768398645568,-1000.0,0.00013821,2]
[401897929,1768398645577,-1000.0,0.00013821,2]
[401897931,1768398645586,-1003.01901965,0.00013821,2]
[401897933,1768398645595,-1000.0,0.00013821,2]
[401897935,1768398645604,-424.36340331,0.00013821,2]
[401897937,1768398645614,-1000.0,0.00013821,2]
[401897939,1768398645623,-284.00644743,0.00013821,2]
[401897941,1768398645632,-1000.0,0.00013821,2]
[401897943,1768398645643,-1000.0,0.00013821,2]
[401897945,1768398645653,-1000.0,0.00013821,2]
[401897946,1768398645663,-1000.0,0.00013821,2]
[401897949,1768398645672,-1000.0,0.00013821,2]
[401897951,1768398645683,-446.5684735,0.00013821,2]
[401897953,1768398645692,-1000.0,0.00013821,2]
[401897955,1768398645702,-344.64451203,0.00013821,2]
[401897957,1768398645712,-604.03491902,0.00013821,2]
[401897959,1768398645722,-1000.0,0.00013821,2]
[401897961,1768398645732,-1000.0,0.00013821,2]
[401897963,1768398645742,-1000.0,0.00013821,2]
[401897965,1768398645751,-1000.0,0.00013821,2]
[401897966,1768398645761,-150.15988072,0.00013973,2]
[401897968,1768398645771,-1329.0,0.00014,4]
[401897970,1768398645780,-4666.20416764,0.00014022,2]
[401897973,1768398645790,-1000.0,0.00014103,2]
[401897975,1768398645800,-244.0,0.00014103,2]
[401897976,1768398645810,-31110.0,0.00014139,2]
[401897979,1768398645820,-2312.83697232,0.00014139,2]
[401897981,1768398645831,-174.61919141,0.00014139,2]
[401897983,1768398645840,-5797.984582,0.00014147,2]
[401897985,1768398645853,-600.0,0.00014221,2]
[401897987,1768398645863,-501.43010395,0.00014247,2]
[401897989,1768398645873,-500.73561513,0.00014247,2]
[401897991,1768398645882,-1000.0,0.00014247,2]
[401897993,1768398645892,-1000.0,0.00014247,2]
[401897995,1768398645902,-1000.0,0.00014247,2]
[401897997,1768398645912,-1000.0,0.00014247,2]
[401897999,1768398645922,-500.31646223,0.00014247,2]
[401898001,1768398645933,-1000.0,0.00014247,2]
[401898003,1768398645947,-919.62973898,0.00014247,2]
[401898005,1768398645958,-1000.0,0.00014247,2]
[401898007,1768398645968,-1003.83285644,0.00014247,2]
[401898009,1768398645979,-501.04290038,0.00014247,2]
[401898011,1768398645989,-500.65603222,0.00014247,2]
[401898013,1768398645998,-250.0,0.00014247,2]
[401898015,1768398646008,-490.12767117,0.00014247,2]
[401898017,1768398646018,-1000.0,0.00014247,2]
[401898019,1768398646028,-1001.31706943,0.00014247,2]
[401898021,1768398646043,-1000.0,0.00014247,2]
[401898023,1768398646054,-1000.0,0.00014247,2]
[401898025,1768398646064,-1000.0,0.00014247,2]
[401898027,1768398646075,-841.41978725,0.00014247,2]
[401898028,1768398646084,-501.21795351,0.00014247,2]
[401898030,1768398646095,-1000.0,0.00014247,2]
[401898032,1768398646104,-1000.0,0.00014247,2]
[401898034,1768398646114,-1000.0,0.00014247,2]
[401898036,1768398646124,-1000.0,0.00014247,2]
[401898038,1768398646135,-1001.28209032,0.00014247,2]
[401898040,1768398646144,-501.82501982,0.00014247,2]
[401898042,1768398646155,-1000.0,0.00014247,2]
[401898045,1768398646165,-1000.0,0.00014247,2]
[401898046,1768398646175,-685.95842189,0.00014247,2]
[401898049,1768398646184,-500.62157755,0.00014247,2]
[401898051,1768398646194,-1000.0,0.00014247,2]
[401898053,1768398646204,-1087.16663197,0.00014247,2]
[401898055,1768398646215,-1000.0,0.00014247,2]
[401898056,1768398646226,-504.58578591,0.00014247,2]
[401898058,1768398646236,-519.65670355,0.00014247,2]
[401898061,1768398646246,-1000.0,0.00014247,2]
[401898062,1768398646257,-1000.0,0.00014247,2]
[401898064,1768398646266,-990.87296502,0.00014247,2]
[401898066,1768398646276,-1000.0,0.00014247,2]
[401898068,1768398646286,-1000.0,0.00014247,2]
[401898070,1768398646298,-193.53352259,0.00014247,2]
[401898072,1768398646308,-1000.0,0.00014247,2]
[401898075,1768398646318,-1003.87539742,0.00014247,2]
[401898077,1768398646328,-1000.0,0.00014247,2]
[401898079,1768398646338,-1000.0,0.00014247,2]
[401898081,1768398646348,-1000.0,0.00014247,2]
[401898082,1768398646358,-1000.0,0.00014247,2]
[401898084,1768398646368,-1000.0,0.00014247,2]
[401898087,1768398646378,-1000.0,0.00014247,2]
[401898089,1768398646387,-1001.20972535,0.00014247,2]
[401898091,1768398646397,-1000.0,0.00014247,2]
[401898093,1768398646407,-343.96245491,0.00014247,2]
[401898095,1768398646416,-1000.0,0.00014247,2]
[401898097,1768398646426,-1000.0,0.00014247,2]
[401898099,1768398646435,-1000.0,0.00014247,2]
[401898101,1768398646446,-1000.0,0.00014247,2]
[401898103,1768398646456,-501.3857634,0.00014247,2]
[401898105,1768398646466,-1355.28517105,0.00014368,2]
[401898107,1768398646476,-502.68632401,0.00014368,2]
[401898109,1768398646486,-822.79494335,0.00014368,2]
[401898111,1768398646496,-1500.0,0.00014368,2]
[401898113,1768398646505,-1500.0,0.00014368,2]
[401898115,1768398646515,-1500.0,0.00014368,2]
[401898117,1768398646525,-1500.0,0.00014368,2]
[401898119,1768398646535,-1500.0,0.00014368,2]
[401898121,1768398646545,-1348.98491417,0.00014368,2]
[401898122,1768398646555,-1500.0,0.00014368,2]
[401898124,1768398646565,-453.04414217,0.00014368,2]
[401898126,1768398646575,-1500.0,0.00014368,2]
[401898129,1768398646584,-1500.0,0.00014368,2]
[401898130,1768398646594,-1003.76788333,0.00014368,2]
[401898132,1768398646604,-153.79187063,0.00014368,2]
[401898134,1768398646613,-1500.0,0.00014368,2]
[401898136,1768398646623,-1500.0,0.00014368,2]
[401898138,1768398646633,-1500.0,0.00014368,2]
[401898140,1768398646642,-1164.35893779,0.00014368,2]
[401898142,1768398646651,-1500.0,0.00014368,2]
[401898146,1768398646662,-1022.04357159,0.00014368,2]
[401898149,1768398646671,-1500.0,0.00014368,2]
[401898152,1768398646681,-1500.0,0.00014368,2]
[401898155,1768398646690,-1623.81068567,0.00014368,2]
[401898156,1768398646700,-1500.0,0.00014368,2]
[401898158,1768398646709,-1502.99360219,0.00014368,2]
[401898161,1768398646719,-1500.0,0.00014368,2]
[401898162,1768398646728,-158.07183809,0.00014368,2]
[401898165,1768398646738,-1500.0,0.00014368,2]